fUSD/lending_fUSD_20260327
["ID","MTS","AMOUNT","RATE_DAILY","PERIOD"]
[418943115,1774609840707,-449.21021429,0.00042573,17]
[418943116,1774609840718,-50.78978571,0.00042573,17]
[418943117,1774609840727,-169.0,0.00042573,17]
[418943118,1774609840736,-280.2083045,0.00042573,17]
[418943119,1774609840748,-219.7916955,0.00042573,17]
[418943120,1774609840757,-3750.55,0.00042703,30]
[418943121,1774609840766,-2773.29,0.00042739,2]
[418943122,1774609840777,-500.0,0.00042739,17]
[418943123,1774609840786,-500.0,0.00042836,17]
[418943124,1774609840795,-786.05,0.00042836,2]
[418943125,1774609840804,-500.0,0.00042847,17]
[418943126,1774609840814,-500.0,0.00042847,17]
[418943127,1774609840823,-500.0,0.00042847,17]
[418943128,1774609840832,-9915.1183045,0.0004291,4]
[418943129,1774609840844,-774.3120455,0.0004291,4]
[418943130,1774609840853,-1579.55,0.0004292,2]
[418943131,1774609840863,-1692.15,0.0004292,2]
[418943132,1774609840872,-998.04856079,0.0004298,7]
[418943156,1774609843155,-3895.8549097,0.00040895,28]
[418943157,1774609843166,-337.95143921,0.0004298,7]
[418943158,1774609843176,-207.89999999,0.0004298,15]
[418943159,1774609843186,-238.97195179,0.00043,120]
[418943160,1774609843199,-3030.25804821,0.00043,120]
[418943161,1774609843208,-1824.22,0.00043,120]
[418943162,1774609843218,-6871.81,0.00043,30]
[418943163,1774609843228,-2283.45,0.00043,30]
[418943164,1774609843237,-492.21,0.00043,30]
[418943165,1774609843247,-2773.29,0.00043013,2]
[418943166,1774609843256,-500.0,0.00043013,17]
[418943167,1774609843266,-230.78253349,0.0004311,17]
[418943168,1774609843276,-134.95418038,0.0004311,2]
[418943169,1774609843288,-651.09581962,0.0004311,2]
[418943170,1774609843298,-500.0,0.00043121,17]
[418943171,1774609843308,-500.0,0.00043121,17]
[418943172,1774609843318,-323.2356623,0.00043121,17]
[418943173,1774609843327,-152.51939348,0.00043281,15]
[418943174,1774609843336,-2773.29,0.00043287,2]
[418943175,1774609843346,-500.0,0.00043287,17]
[418943176,1774609843363,-834.25,0.00043331,14]
[418943177,1774609843373,-786.05,0.00043384,2]
[418943178,1774609843382,-500.0,0.00043395,17]
[418943179,1774609843392,-500.0,0.00043395,17]
[418943180,1774609843402,-5000.0,0.000434,120]
[418943181,1774609843411,-10689.43035,0.00043454,4]
[418943182,1774609843421,-184.6435,0.00043464,7]
[418943183,1774609843430,-3334.62,0.000435,120]
[418943184,1774609843440,-1860.71,0.000435,120]
[418943185,1774609843450,-197.46224712,0.0004355,20]
[418943186,1774609843460,-2773.29,0.00043561,2]
[418943187,1774609843469,-500.0,0.00043561,17]
[418943188,1774609843485,-478.02290368,0.00043569,9]
[418943189,1774609843500,-200.0,0.0004363,120]
[418943190,1774609843510,-10689.43035,0.0004363,4]
[418943191,1774609843519,-106894.3035,0.0004364,4]
[418943192,1774609843529,-161892.96584149,0.0004365,60]
[418943193,1774609843543,-16680.5,0.0004365,60]
[418943194,1774609843630,-3474.79402834,0.0004365,60]
[418943195,1774609843685,-8697.64896235,0.0004365,60]
[418943228,1774609845758,-500.0,0.00042288,2]
[418943230,1774609845768,-333.0,0.00042299,2]
[418943253,1774609846078,-1284.75,0.00042299,2]
[418943254,1774609846088,-500.0,0.00042562,2]
[418943255,1774609846098,-1617.75,0.00042573,2]
[418943256,1774609846107,-500.0,0.00042836,2]
[418943257,1774609846118,-1617.75,0.00042847,2]
[418943258,1774609846128,-500.0,0.0004311,2]
[418943259,1774609846138,-1617.75,0.00043121,2]
[418943260,1774609846148,-500.29766906,0.00043384,2]
[418943261,1774609846158,-1617.75,0.00043395,2]
[418943262,1774609846168,-9123.66822236,0.0004365,60]
[418943263,1774609846186,-15629.42294546,0.0004365,60]
[418943264,1774609846195,-786.05,0.00043658,2]
[418943265,1774609846205,-500.0,0.00043669,17]
[418943266,1774609846215,-587.20590552,0.00043669,17]
[418943267,1774609846225,-1617.75,0.00043669,2]
[418943268,1774609846236,-1448.0,0.00043699,7]
[418943269,1774609846247,-170.40767924,0.000437,120]
[418943270,1774609846258,-2467.0,0.00043723,2]
[418943271,1774609846268,-232.92325019,0.000438,120]
[418943272,1774609846280,-1820.25,0.00043834,2]
[418943273,1774609846290,-500.0,0.00043834,17]
[418943274,1774609846300,-500.0,0.00043834,2]
[418943275,1774609846310,-500.0,0.00043834,17]
[418943276,1774609846320,-500.0,0.00043834,17]
[418943277,1774609846330,-525.99,0.00043834,7]
[418943278,1774609846340,-500.0,0.00043834,17]
[418943279,1774609846349,-500.0,0.00043834,14]
[418943280,1774609846362,-500.0,0.00043834,17]
[418943281,1774609846372,-500.0,0.00043834,17]
[418943282,1774609846381,-321.00768283,0.00043834,17]
[418943283,1774609846391,-556.00833526,0.00043834,17]
[418943284,1774609846400,-500.0,0.00043834,7]
[418943285,1774609846410,-500.0,0.00043834,17]
[418943286,1774609846420,-500.0,0.00043834,17]
[418943287,1774609846430,-107.90503168,0.00043834,17]
[418943288,1774609846442,-103.57410794,0.00043834,17]
[418943289,1774609846451,-500.0,0.00043834,7]
[418943290,1774609846461,-500.0,0.00043834,17]
[418943291,1774609846470,-500.0,0.00043835,17]
[418943292,1774609846480,-786.05,0.00043932,2]
[418943293,1774609846489,-500.0,0.00043943,17]
[418943294,1774609846499,-10689.43035,0.0004397,4]
[418943295,1774609846508,-1600.0,0.0004398,2]
[418943296,1774609846518,-3401.31,0.00044,120]
[418943297,1774609846528,-1897.92,0.00044,120]
[418943298,1774609846538,-152.51939348,0.00044044,15]
[418943299,1774609846547,-1820.25,0.00044108,2]
[418943300,1774609846556,-500.0,0.00044108,17]
[418943301,1774609846566,-500.0,0.00044108,2]
[418943302,1774609846575,-500.0,0.00044108,17]
[418943303,1774609846585,-500.0,0.00044108,17]
[418943304,1774609846595,-525.99,0.00044108,7]
[418943305,1774609846604,-500.0,0.00044108,17]
[418943306,1774609846614,-500.0,0.00044108,14]
[418943307,1774609846623,-372.30692359,0.00044108,17]
[418943308,1774609846633,-500.0,0.00044108,17]
[418943309,1774609846643,-116.57029003,0.00044108,7]
[418943310,1774609846659,-383.42970997,0.00044108,7]
[418943311,1774609846669,-500.0,0.00044108,17]
[418943312,1774609846680,-500.0,0.00044108,17]
[418943313,1774609846690,-500.0,0.00044108,7]
[418943314,1774609846700,-500.0,0.00044108,17]
[418943315,1774609846710,-500.0,0.00044109,17]
[418943316,1774609846720,-786.05,0.00044206,2]
[418943317,1774609846731,-269.10741592,0.00044217,17]
[418943318,1774609846746,-150.0,0.00044281,120]
[418943319,1774609846756,-5463.23292519,0.00044372,4]
[418943329,1774610993787,195.56,0.000111,20]
[418943332,1774611033310,-1994.4997,0.00022544,2]
[418943337,1774611038355,-348.88176786,0.00022544,2]
[418943338,1774611040621,-123.61853214,0.00022544,2]
[418943339,1774611040631,-1266.28983446,0.00025544,2]
[418943340,1774611040643,-333.13616554,0.00025544,2]
[418943341,1774611040652,-151.0,0.00025858,2]
[418943342,1774611040662,-151.0,0.0002604,2]
[418943343,1774611040673,-10.56037076,0.00029387,2]
[418943344,1774611040685,-433.69010819,0.00029387,2]
[418943345,1774611040696,-2795.74952105,0.00029387,2]
[418943346,1774611040706,-263.38,0.00029387,2]
[418943347,1774611040716,-3607.77047895,0.00029387,2]
[418943374,1774611043381,-151.0,0.00026198,2]
[418943375,1774611043392,-5046.50952105,0.00029387,2]
[418943376,1774611043402,-196.245,0.0003211,30]
[418943377,1774611043411,-175.14915267,0.00032133,2]
[418943378,1774611043421,-196.245,0.00032133,30]
[418943379,1774611043430,-175.14915267,0.00032133,2]
[418943380,1774611043440,-175.14915267,0.00032134,2]
[418943381,1774611043449,-203.10182756,0.000372,120]
[418943382,1774611043459,-185.0,0.00038356,2]
[418943383,1774611043469,-185.0,0.00038356,2]
[418943384,1774611043479,-185.0,0.00038356,2]
[418943385,1774611043489,-8399.08066486,0.0004,120]
[418943386,1774611043498,-1000.0,0.0004085,120]
[418943387,1774611043508,-1000.0,0.0004085,2]
[418943388,1774611043518,-2679.62,0.00042,120]
[418943389,1774611043528,-1495.22,0.00042,120]
[418943390,1774611043538,-10038.04662373,0.00042,120]
[418943391,1774611043548,-155.77,0.00042,120]
[418943392,1774611043558,-898.2,0.00042047,2]
[418943393,1774611043568,-913.6426266,0.00042047,2]
[418943394,1774611043577,-898.2,0.00042047,2]
[418943395,1774611043587,-555.2622139,0.00042047,2]
[418943420,1774611046281,-358.3804127,0.00042047,2]
[418943421,1774611046292,-1998.905,0.00042051,63]
[418943422,1774611046302,-185.47,0.00042051,63]
[418943423,1774611046311,-195.1672,0.00042051,2]
[418943424,1774611046322,-294.07337187,0.00042103,2]
[418943434,1774611535941,173.0,9e-05,3]
[418943436,1774612042134,-450.16689461,0.00020395,2]
[418943452,1774612238386,-27.3690669,0.00020395,2]
[418943453,1774612238398,-198.68403849,0.00020395,2]
[418943454,1774612238407,-676.22,0.00020669,2]
[418943455,1774612238418,-676.22,0.00020943,2]
[418943456,1774612238428,-676.23,0.00021217,2]
[418943457,1774612238438,-270.22,0.00029595,2]
[418943458,1774612238447,-150.58434503,0.0002989,2]
[418943459,1774612238458,-1918.55892042,0.000299,2]
[418943460,1774612238520,-327.44549181,0.000299,2]
[418943462,1774612242208,-714.54905071,0.000299,2]
[418943479,1774612243570,-13461.28801028,0.000299,2]
[418943488,1774612246168,-28028.11980498,0.000299,2]
[418943489,1774612246273,-720.69661148,0.000299,2]
[418943490,1774612246285,-4418.88196997,0.000299,2]
[418943491,1774612246327,-1180.128,0.000299,2]
[418943492,1774612246380,-807.51110822,0.000299,2]
[418943493,1774612246435,-15870.82833213,0.000299,2]
[418943494,1774612246444,-157.1,0.0002999,3]
[418943495,1774612246454,-139245.45099576,0.0003,30]
[418943507,1774613245121,-617.1939,0.00013111,2]
[418943508,1774613245144,-48030.33659157,0.00016,2]
[418943547,1774613363326,-278.0,0.00015899,2]
[418943548,1774613363356,-151.65937117,0.000159,2]
[418943549,1774613363378,-394.92449423,0.000159,2]
[418943550,1774613363401,-16838.41990876,0.000159,2]
[418943551,1774613363424,-152.51939348,0.000159,2]
[418943552,1774613363449,-249.47713172,0.00015999,2]
[418943553,1774613363472,-369394.91450064,0.00016,2]
[418943562,1774613433223,-85750.28158186,9.5e-05,3]
[418943565,1774613433234,-637.0,0.00015899,2]
[418943567,1774613433243,-4561.19790642,0.000159,2]
[418943568,1774613433252,-1543359.62516805,0.000159,2]
[418943569,1774613433278,-2416.29731248,0.000159,2]
[418943570,1774613433290,-280.72,0.000159,2]
[418943571,1774613433302,-6559.84457289,0.000159,2]
[418943572,1774613433314,-6368.32208559,0.000159,2]
[418943573,1774613433325,-987.95536,0.000159,2]
[418943574,1774613433338,-869.66570832,0.000159,2]
[418943575,1774613433349,-388.019697,0.000159,2]
[418943576,1774613433360,-454.00593121,0.000159,2]
[418943577,1774613433372,-1024.20318599,0.000159,2]
[418943578,1774613433383,-11906.53889867,0.000159,2]
[418943579,1774613433395,-4451.41049392,0.000159,2]
[418943580,1774613433405,-850.09467,0.000159,2]
[418943581,1774613433417,-2088.41628585,0.000159,2]
[418943582,1774613433428,-297.02054127,0.000159,2]
[418943583,1774613433441,-1910.49157789,0.000159,2]
[418943584,1774613433453,-2197.44542702,0.000159,2]
[418943585,1774613433472,-644.71052742,0.000159,2]
[418943586,1774613433484,-101962.72388314,0.000159,2]
[418943587,1774613433496,-615.73022702,0.000159,2]
[418943588,1774613433508,-4302.44331392,0.000159,2]
[418943589,1774613433519,-610.44814184,0.000159,2]
[418943590,1774613433534,-4068.90349615,0.000159,2]
[418943591,1774613433546,-702.36606411,0.000159,2]
[418943592,1774613433559,-510.61,0.000159,2]
[418943593,1774613433570,-994.68708973,0.000159,2]
[418943594,1774613433580,-6847.72644587,0.000159,2]
[418943595,1774613433591,-11127.41805325,0.000159,2]
[418943596,1774613433603,-3347.98487104,0.000159,2]
[418943597,1774613433614,-14509.76393067,0.000159,2]
[418943598,1774613433627,-382.82685681,0.000159,2]
[418943599,1774613433638,-2892.35442139,0.000159,2]
[418943600,1774613433649,-5707.44945277,0.000159,2]
[418943601,1774613433663,-299.23478,0.000159,2]
[418943603,1774613433675,-756.35463349,0.000159,2]
[418943605,1774613433686,-253.91423836,0.000159,2]
[418943607,1774613433697,-952.0,0.000159,2]
[418943611,1774613433718,-1008.75000001,0.000159,2]
[418943613,1774613433729,-20655.01776955,0.000159,2]
[418943615,1774613433742,-12212.54101581,0.000159,2]
[418943617,1774613433754,-7509.37080246,0.000159,2]
[418943620,1774613433765,-2033.32099426,0.000159,2]
[418943622,1774613433777,-507.104,0.000159,2]
[418943740,1774613437485,-1128.25873982,0.000159,2]
[418943741,1774613437497,-7597.2,0.000159,2]
[418943742,1774613437539,-4688.60838155,0.000159,2]
[418943743,1774613437552,-874.22355268,0.000159,2]
[418943744,1774613437565,-842.13851353,0.000159,2]
[418943745,1774613437697,-500.0,0.000159,2]
[418943746,1774613437708,-352.59701224,0.000159,2]
[418943747,1774613437719,-4938.94304721,0.000159,2]
[418943748,1774613437730,-84754.9199613,0.000159,2]
[418943749,1774613437741,-1412.62,0.000159,2]
[418943750,1774613437752,-603.24589171,0.000159,2]
[418943751,1774613437764,-2485.97986445,0.000159,2]
[418943752,1774613437775,-748.26893567,0.000159,2]
[418943753,1774613437786,-796.01445531,0.000159,2]
[418943754,1774613437801,-3800.55334224,0.000159,2]
[418943755,1774613437812,-1063.65239745,0.000159,2]
[418943756,1774613437823,-540.49052912,0.000159,2]
[418943757,1774613437836,-187742.95869566,0.000159,2]
[418943758,1774613437848,-691.58645727,0.000159,2]
[418943759,1774613437861,-14421.79513231,0.000159,2]
[418943760,1774613437871,-3494.11304809,0.000159,2]
[418943761,1774613437882,-606.81999954,0.000159,2]
[418943762,1774613437893,-1496.2543163,0.000159,2]
[418943763,1774613437905,-2992.09560657,0.000159,2]
[418943764,1774613437916,-531.13294994,0.000159,2]
[418943765,1774613437927,-4020.37096218,0.000159,2]
[418943767,1774613437938,-2692.33929163,0.000159,2]
[418943769,1774613437948,-828.73,0.000159,2]
[418943770,1774613437963,-123439.85731879,0.000159,2]
[418943771,1774613437975,-727.73354575,0.000159,2]
[418943772,1774613437986,-315.0,0.000159,2]
[418943930,1774613439708,-635.10899384,0.000159,2]
[418943944,1774613439924,-15673.62833263,0.000159,2]
[418943946,1774613439934,-11225.6132725,0.000159,2]
[418943948,1774613439943,-36865.0657,0.000159,2]
[418943950,1774613439952,-199810.9792624,0.00016,2]
[418943953,1774613439964,-113885.25585598,0.00016,2]
[418943955,1774613439976,-1001.22178799,0.00016,2]
[418943957,1774613439988,-92682.31139689,0.00016,2]
[418943963,1774613440037,-1143.67568,0.00016,2]
[418943965,1774613440050,-499.16331975,0.00016,2]
[418943967,1774613440063,-9136.69,0.00016,2]
[418943969,1774613440075,-776.90309751,0.00016,2]
[418943972,1774613440087,-10722.44323136,0.00016,2]
[418943974,1774613440099,-899.72188916,0.00016,2]
[418943976,1774613440111,-5048.431529,0.00016,2]
[418943978,1774613440122,-3351.79532226,0.00016,2]
[418943983,1774613440155,-96440.03148308,0.00016,2]
[418944011,1774613440421,-3227755.70630339,0.00016,2]
[418944013,1774613440433,-36132.87203757,0.00016,2]
[418944015,1774613440445,-596.298,0.00016,2]
[418944020,1774613440478,-1406.68074567,0.00016,2]
[418944260,1774613442741,-182243.71710317,0.00016,2]
[418944268,1774613442797,-270096.96756653,0.00016,2]
[418944270,1774613442809,-35231.84237823,0.00016,2]
[418944272,1774613442820,-322.94797957,0.00016,2]
[418944278,1774613442858,-779.57451173,0.00016,2]
[418944280,1774613442869,-1897.46000004,0.00016,2]
[418944282,1774613442880,-258.06711319,0.00016,2]
[418944284,1774613442891,-10172.9838638,0.00016,2]
[418944287,1774613442902,-17804.86008499,0.00016,2]
[418944289,1774613442912,-305.32845962,0.00016,2]
[418944296,1774613442969,-130787.87188032,0.00016,2]
[418944298,1774613442979,-303.91,0.00016,2]
[418944300,1774613442988,-247.13,0.00016,2]
[418944302,1774613442997,-164.55,0.00016,2]
[418944304,1774613443006,-3134.0,0.000161,7]
[418944306,1774613443016,-1102.16316398,0.0001789,2]
[418944308,1774613443026,-152.51939348,0.00018977,2]
[418944310,1774613443036,-61075.49390346,0.0002,30]
[418944312,1774613443049,-1189.45646289,0.0002,30]
[418944972,1774613449664,-7535.36458912,0.0002,30]
[418944974,1774613449678,-600.0,0.0002,30]
[418944976,1774613449689,-1183.72033041,0.0002,30]
[418944982,1774613449719,-375.16371793,0.0002,30]
[418944984,1774613449730,-377.0455958,0.0002,30]
[418944986,1774613449741,-1040.14320192,0.0002,30]
[418944990,1774613449775,-1402.9726,0.0002,30]
[418944991,1774613449832,-11317.11703993,0.0002,30]
[418944992,1774613449842,-152.51939348,0.00022054,2]
[418944993,1774613449851,-500.0,0.00024029,2]
[418944994,1774613449861,-500.0,0.00024029,2]
[418944995,1774613449871,-352.26956381,0.00024029,2]
[418944996,1774613449880,-616.97,0.00024029,2]
[418944997,1774613449889,-616.97,0.00024303,2]
[418944998,1774613449898,-616.97,0.00024577,2]
[418944999,1774613449907,-617.0,0.00024851,2]
[418945000,1774613449916,-7073.98055461,0.000249,3]
[418945001,1774613449927,-2758.73748989,0.000249,3]
[418945002,1774613449939,-2008.26452018,0.000249,3]
[418945003,1774613449950,-47815.59109869,0.000249,3]
[418945004,1774613449962,-12382.63,0.000249,3]
[418945006,1774613449973,-164511.32895012,0.000249,3]
[418945008,1774613449984,-53158.24875869,0.000249,3]
[418945010,1774613449996,-436.38171868,0.000249,3]
[418945012,1774613450007,-506.5681281,0.000249,3]
[418945014,1774613450018,-911.19309618,0.000249,3]
[418945016,1774613450029,-399.48050875,0.000249,3]
[418945019,1774613450040,-1980.58987044,0.000249,3]
[418945024,1774613450086,-2078.31393325,0.000249,3]
[418945026,1774613450097,-910.07126,0.000249,3]
[418945029,1774613450109,-719.249995,0.000249,3]
[418945031,1774613450119,-966.59,0.000249,3]
[418945033,1774613450130,-662.78999998,0.000249,3]
[418946629,1774613818649,-3624.7819,0.000159,2]
[418946630,1774613818684,-16875.2181,0.000159,2]
[418946638,1774614553109,-7742.574476,0.000158,2]
[418946639,1774614554132,-4661.094124,0.000158,2]
[418946640,1774614554155,-2511.41494,0.000159,2]
[418946648,1774614631662,-364.3259,0.000158,2]
[418946649,1774614631671,-628.92410001,0.000159,2]
[418946650,1774614631720,-51889.14035999,0.000159,2]
[418946651,1774614631729,-151.0,0.00017203,2]
[418946652,1774614631738,-238.37275521,0.0001738,2]
[418946653,1774614631747,-2000.0,0.000192,2]
[418946654,1774614631756,-616.97,0.00020666,2]
[418946655,1774614631766,-616.97,0.0002094,2]
[418946656,1774614631775,-4033.4849941,0.00021141,2]
[418946657,1774614631784,-616.97,0.00021213,2]
[418946658,1774614631793,-240.5747,0.000214,2]
[418946659,1774614631803,-617.0,0.00021487,2]
[418946660,1774614631812,-676.22,0.00021695,2]
[418946661,1774614631821,-676.22,0.00021968,2]
[418946662,1774614631830,-676.22,0.00022242,2]
[418946663,1774614631841,-605.71,0.00022516,2]
[418946664,1774614631851,-2000.0,0.000229,2]
[418946665,1774614631861,-2724.0,0.000236,5]
[418946666,1774614631870,-728.78372921,0.00023777,2]
[418946672,1774614637735,-3304.70126489,0.00023777,2]
[418946673,1774614637745,-151.0,0.0002402,2]
[418946674,1774614637756,-150.0,0.00024658,2]
[418946675,1774614637766,-1451.4337,0.000247,2]
[418946676,1774614637776,-333.136,0.00024761,2]
[418946677,1774614637787,-6986.1023,0.000248,2]
[418946678,1774614637797,-1000.0,0.000248,2]
[418946679,1774614637807,-8037.78831191,0.000249,2]
[418946680,1774614637816,-4033.4849941,0.00026414,2]
[418946681,1774614637825,-2000.0,0.000266,2]
[418946682,1774614637835,-300.21,0.00029014,14]
[418946683,1774614637844,-10787.59,0.0002904,10]
[418946684,1774614637855,-4033.4849941,0.0002905,2]
[418946685,1774614637864,-2000.0,0.000303,2]
[418946686,1774614637874,-154.34580534,0.00030681,70]
[418946687,1774614637884,-152.5193935,0.00030823,2]
[418946688,1774614637895,-1000.0,0.00030923,120]
[418946689,1774614637905,-1000.0,0.00030923,120]
[418946690,1774614637916,-1000.0,0.00030923,120]
[418946691,1774614637925,-1000.0,0.00030923,120]
[418946692,1774614637935,-1000.0,0.00030923,120]
[418946693,1774614637947,-1000.0,0.00030923,120]
[418946694,1774614637959,-1000.0,0.00030923,120]
[418946695,1774614637968,-1000.0,0.00030923,120]
[418946696,1774614637977,-1000.0,0.00030923,120]
[418946697,1774614637986,-1000.0,0.00030923,120]
[418946698,1774614637995,-1000.0,0.00030923,120]
[418946699,1774614638004,-1000.0,0.00030923,120]
[418946701,1774614638013,-1000.0,0.00030923,120]
[418946702,1774614638022,-917.336,0.00030923,120]
[418946703,1774614638031,-463.781,0.00030923,120]
[418946704,1774614638040,-5000.0,0.00032115,2]
[418946705,1774614638050,-200.0,0.00032517,2]
[418946706,1774614638060,-300.0,0.00032575,2]
[418946708,1774614638069,-5046.51,0.00032886,2]
[418946709,1774614638078,-165.86,0.00032987,2]
[418946711,1774614638088,-166.66,0.00033012,30]
[418946713,1774614638098,-1852.42,0.00033567,2]
[418946714,1774614638108,-166.66,0.00033707,30]
[418946715,1774614638117,-2000.0,0.00034,2]
[418946716,1774614638126,-526.0,0.00034003,5]
[418946718,1774614638135,-166.66,0.00034402,30]
[418946720,1774614638144,-1500.0,0.00034749,120]
[418946721,1774614638155,-166.66,0.00035097,30]
[418946722,1774614638164,-166.66,0.00035792,30]
[418946723,1774614638173,-166.66,0.00036487,30]
[418946724,1774614638183,-203.10182756,0.000372,120]
[418946725,1774614638192,-2000.0,0.000377,2]
[418946726,1774614638202,-400.0,0.00038,2]
[418946727,1774614638211,-178.94,0.00038276,2]
[418946728,1774614638221,-185.47,0.0003831,51]
[418946729,1774614638230,-1599.124,0.0003831,51]
[418946730,1774614638239,-205.0,0.00038356,2]
[418946731,1774614638249,-196.0,0.00038356,2]
[418946732,1774614638258,-192.0,0.00038356,2]
[418946733,1774614638267,-810.04,0.00038356,14]
[418946734,1774614638277,-152.51939348,0.00038562,2]
[418946735,1774614638286,-165.86,0.00038858,2]
[418946736,1774614638296,-151.0,0.00039539,14]
[418946737,1774614638306,-3240.0,0.00039543,120]
[418946738,1774614638316,-155.51,0.00039543,2]
[418946739,1774614638325,-2000.0,0.00039543,2]
[418946740,1774614638335,-1000.0,0.000399,120]
[418946741,1774614638345,-10729.59,0.0003999,10]
[418946742,1774614638355,-322.34463659,0.0004,2]
[418946743,1774614638366,-8399.08066386,0.0004,120]
[418946744,1774614638376,-150.0,0.00040149,2]
[418946745,1774614638384,-500.0,0.00040769,2]
[418946746,1774614638394,-8565.75555911,0.00040769,2]
[418946747,1774614638404,-500.0,0.00040769,2]
[418946748,1774614638413,-500.0,0.00040769,2]
[418946749,1774614638422,-500.0,0.00040769,2]
[418946750,1774614638431,-500.0,0.00040769,2]
[418946751,1774614638441,-305.72770176,0.00040769,2]
[418946752,1774614638450,-500.0,0.00040769,2]
[418946753,1774614638459,-500.0,0.00040769,2]
[418946754,1774614638468,-250.0,0.00040769,2]
[418946755,1774614638479,-250.0,0.00040769,2]
[418946756,1774614638489,-250.0,0.00040769,2]
[418946757,1774614638500,-250.0,0.00040769,2]
[418946758,1774614638511,-151.0,0.00040769,2]
[418946759,1774614638522,-250.0,0.00040769,2]
[418946760,1774614638532,-250.0,0.00040769,2]
[418946761,1774614638541,-500.0,0.00040824,2]
[418946762,1774614638550,-2391.669318,0.00040824,2]
[418946763,1774614638559,-175.7599353,0.00040824,2]
[418946764,1774614638568,-207.89999999,0.00040867,15]
[418946765,1774614638577,-500.0,0.00040879,2]
[418946766,1774614638586,-500.0,0.00040934,2]
[418946767,1774614638595,-500.0,0.00040948,17]
[418946768,1774614638604,-500.0,0.00040949,31]
[418946769,1774614638614,-500.0,0.00040949,31]
[418946770,1774614638623,-161.97355944,0.00040949,31]
[418946771,1774614638632,-571.07937204,0.00040949,31]
[418946772,1774614638641,-571.07937204,0.00040949,31]
[418946773,1774614638651,-495.83847723,0.00040949,31]
[418946774,1774614638660,-571.07937204,0.00040949,31]
[418946775,1774614638670,-571.07937204,0.00040949,31]
[418946776,1774614638679,-571.07937204,0.00040949,31]
[418946777,1774614638688,-571.07937204,0.00040949,31]
[418946778,1774614638696,-396.64343068,0.00040949,31]
[418946779,1774614638705,-571.07937204,0.00040949,31]
[418946780,1774614638714,-571.07937204,0.00040949,31]
[418946781,1774614638723,-571.07937204,0.00040949,31]
[418946782,1774614638732,-571.07937204,0.00040949,31]
[418946783,1774614638740,-571.07937204,0.00040949,31]
[418946784,1774614638750,-571.07937204,0.00040949,31]
[418946785,1774614638759,-571.07937204,0.00040949,31]
[418946786,1774614638768,-571.07937204,0.00040949,31]
[418946787,1774614638777,-571.07937204,0.00040949,31]
[418946788,1774614638787,-571.07937204,0.00040949,31]
[418946789,1774614638796,-571.07937204,0.00040949,31]
[418946790,1774614638805,-571.07937204,0.00040949,31]
[418946791,1774614638814,-571.07937204,0.00040949,31]
[418946792,1774614638823,-571.07937204,0.00040949,31]
[418946793,1774614638837,-571.07937204,0.00040949,31]
[418946794,1774614638846,-628.18730923,0.00040949,31]
[418946795,1774614638855,-628.18730923,0.00040949,31]
[418946796,1774614638864,-628.18730923,0.00040949,31]
[418946797,1774614638873,-628.18730923,0.00040949,31]
[418946798,1774614638883,-628.18730923,0.00040949,31]
[418946799,1774614638891,-628.18730923,0.00040949,31]
[418946800,1774614638900,-386.65127065,0.00040949,31]
[418946801,1774614638913,-241.53603858,0.00040949,31]
[418946802,1774614638922,-628.18730923,0.00040949,31]
[418946803,1774614638931,-462.38253651,0.00040949,31]
[418946804,1774614638944,-165.80477272,0.00040949,31]
[418946805,1774614638952,-94053.15160768,0.0004095,60]
[418946806,1774614638967,-6958.9069295,0.0004095,60]